[Event "*** SCC Grand Prix: Titled Tuesday Blitz"]
[Site "Chess.com"]
[Date "2020.07.07"]
[Round "10"]
[White "maciek_92"]
[Black "GadimbayliA"]
[Result "1-0"]
[WhiteElo "2695"]
[BlackElo "2879"]
[TimeControl "180+1"]
[EndTime "12:00:21 PDT"]
[Termination "maciek_92 won by resignation"]

1. f4 {[%clk 0:03:00.9]} 1... d5 {[%clk 0:02:56.9]} 2. Nf3 {[%clk 0:02:53.9]}
2... Nf6 {[%clk 0:02:57.4]} 3. g3 {[%clk 0:02:53.2]} 3... g6 {[%clk 0:02:57.2]}
4. Bg2 {[%clk 0:02:53.7]} 4... Bg7 {[%clk 0:02:58.1]} 5. O-O {[%clk 0:02:54.4]}
5... O-O {[%clk 0:02:58.8]} 6. d3 {[%clk 0:02:54.8]} 6... c5 {[%clk 0:02:59.1]}
7. Qe1 {[%clk 0:02:52.7]} 7... Nc6 {[%clk 0:03:00]} 8. e4 {[%clk 0:02:52.9]}
8... dxe4 {[%clk 0:03:00.8]} 9. dxe4 {[%clk 0:02:53.8]} 9... Nd4 {[%clk
0:03:01.3]} 10. Nxd4 {[%clk 0:02:53]} 10... Qxd4+ {[%clk 0:03:02.2]} 11. Kh1
{[%clk 0:02:52]} 11... e5 {[%clk 0:02:48]} 12. Nc3 {[%clk 0:02:48.2]} 12... exf4
{[%clk 0:02:46.6]} 13. gxf4 {[%clk 0:02:40.4]} 13... Bg4 {[%clk 0:02:44.4]} 14.
h3 {[%clk 0:02:34.7]} 14... Bh5 {[%clk 0:02:42.6]} 15. e5 {[%clk 0:02:27.7]}
15... Ne8 {[%clk 0:02:36.9]} 16. Be3 {[%clk 0:02:25.2]} 16... Qc4 {[%clk
0:02:02.7]} 17. b3 {[%clk 0:02:08.3]} 17... Qb4 {[%clk 0:01:59.5]} 18. a3 {[%clk
0:02:08.6]} 18... Qa5 {[%clk 0:01:56.5]} 19. Nd5 {[%clk 0:01:56.8]} 19... Qb5
{[%clk 0:01:54.3]} 20. a4 {[%clk 0:01:50.6]} 20... Qd7 {[%clk 0:01:53.3]} 21.
Bxc5 {[%clk 0:01:49.6]} 21... Nc7 {[%clk 0:01:52.3]} 22. Nxc7 {[%clk 0:01:43.3]}
22... Qxc7 {[%clk 0:01:48.8]} 23. Bxf8 {[%clk 0:01:42.4]} 23... Rxf8 {[%clk
0:01:49.7]} 24. c4 {[%clk 0:01:34.9]} 24... Rd8 {[%clk 0:01:47.4]} 25. Ra2
{[%clk 0:01:15]} 25... Qd7 {[%clk 0:01:29.1]} 26. Rff2 {[%clk 0:01:07.7]} 26...
Qe7 {[%clk 0:01:21.1]} 27. Rad2 {[%clk 0:01:07.1]} 27... Re8 {[%clk 0:01:21.2]}
28. Qe4 {[%clk 0:00:59]} 28... Qh4 {[%clk 0:01:14.6]} 29. Qxb7 {[%clk
0:00:48.2]} 29... Bh6 {[%clk 0:01:14.9]} 30. Qe4 {[%clk 0:00:35.3]} 30... Bg4
{[%clk 0:01:15.3]} 31. Kh2 {[%clk 0:00:23.9]} 31... Bf5 {[%clk 0:01:15.1]} 32.
Qf3 {[%clk 0:00:23.4]} 32... Bf8 {[%clk 0:01:11.9]} 33. Qg3 {[%clk 0:00:23.4]}
33... Qh6 {[%clk 0:01:08.1]} 34. Rd5 {[%clk 0:00:23]} 34... Rb8 {[%clk 0:01:07]}
35. Rfd2 {[%clk 0:00:20.8]} 35... Kg7 {[%clk 0:01:07.1]} 36. Rd8 {[%clk
0:00:19.6]} 36... Rb6 {[%clk 0:01:03.7]} 37. R8d6 {[%clk 0:00:19.4]} 37... Bxd6
{[%clk 0:01:02.6]} 38. Rxd6 {[%clk 0:00:19.9]} 38... Rb8 {[%clk 0:00:58.8]} 39.
Qg5 {[%clk 0:00:19.2]} 39... Qxg5 {[%clk 0:00:56.9]} 40. fxg5 {[%clk 0:00:20.1]}
40... Rxb3 {[%clk 0:00:57.8]} 41. Bd5 {[%clk 0:00:19]} 41... Rxh3+ {[%clk
0:00:54.9]} 42. Kg2 {[%clk 0:00:18.9]} 42... Rh5 {[%clk 0:00:49.1]} 43. Ra6
{[%clk 0:00:17.6]} 43... Rxg5+ {[%clk 0:00:49.2]} 44. Kf2 {[%clk 0:00:16.4]}
44... Bc8 {[%clk 0:00:45.6]} 45. Rxa7 {[%clk 0:00:16.1]} 45... Rxe5 {[%clk
0:00:46.2]} 46. Rxf7+ {[%clk 0:00:15.8]} 46... Kh6 {[%clk 0:00:43.7]} 47. a5
{[%clk 0:00:10.5]} 47... Ba6 {[%clk 0:00:43.7]} 48. Ra7 {[%clk 0:00:07]} 48...
Bc8 {[%clk 0:00:44]} 49. Rc7 {[%clk 0:00:07.6]} 49... Ba6 {[%clk 0:00:43.2]} 50.
Ra7 {[%clk 0:00:07.8]} 50... Bc8 {[%clk 0:00:43.3]} 51. a6 {[%clk 0:00:08.1]}
51... Rf5+ {[%clk 0:00:43]} 52. Ke3 {[%clk 0:00:08.3]} 52... Rf6 {[%clk
0:00:33.2]} 53. Bb7 {[%clk 0:00:08.4]} 53... Bg4 {[%clk 0:00:32.7]} 54. Ra8
{[%clk 0:00:07.7]} 54... Rf1 {[%clk 0:00:30.7]} 55. a7 {[%clk 0:00:06.5]} 55...
Ra1 {[%clk 0:00:30.1]} 56. c5 {[%clk 0:00:06.5]} 56... Kg5 {[%clk 0:00:24.8]}
57. c6 {[%clk 0:00:06.8]} 57... h5 {[%clk 0:00:23.8]} 58. c7 {[%clk 0:00:07.4]}
58... Ra3+ {[%clk 0:00:20.8]} 59. Kd4 {[%clk 0:00:06.4]} 59... h4 {[%clk
0:00:21.1]} 60. c8=Q {[%clk 0:00:05.5]} 60... Bxc8 {[%clk 0:00:20.9]} 61. Bxc8
{[%clk 0:00:06.4]} 61... Ra1 {[%clk 0:00:18.2]} 62. Ke3 {[%clk 0:00:05.3]} 62...
Ra3+ {[%clk 0:00:17.9]} 63. Ke4 {[%clk 0:00:05.8]} 63... Ra4+ {[%clk 0:00:18.2]}
64. Ke5 {[%clk 0:00:06.4]} 64... Ra5+ {[%clk 0:00:18.7]} 65. Kd4 {[%clk
0:00:06.7]} 65... Ra4+ {[%clk 0:00:18.9]} 66. Kd5 {[%clk 0:00:07.1]} 66... Ra1
{[%clk 0:00:18.8]} 67. Kc6 {[%clk 0:00:07.1]} 67... Rc1+ {[%clk 0:00:18.8]} 68.
Kb6 {[%clk 0:00:07]} 68... Rb1+ {[%clk 0:00:19.3]} 69. Kc7 {[%clk 0:00:07.5]}
69... Rc1+ {[%clk 0:00:19.6]} 70. Kd6 {[%clk 0:00:08.1]} 70... Rd1+ {[%clk
0:00:19.6]} 71. Ke7 {[%clk 0:00:08.8]} 71... Ra1 {[%clk 0:00:18.6]} 72. Bd7
{[%clk 0:00:08.4]} 72... Ra3 {[%clk 0:00:16.6]} 73. Kd6 {[%clk 0:00:08.5]} 73...
Ra1 {[%clk 0:00:15.3]} 74. Be6 {[%clk 0:00:07.8]} 74... Rd1+ {[%clk 0:00:14.8]}
75. Kc5 {[%clk 0:00:06.6]} 75... Ra1 {[%clk 0:00:15.7]} 76. Kb4 {[%clk
0:00:06.6]} 76... Ra6 {[%clk 0:00:14.8]} 77. Bc4 {[%clk 0:00:06.2]} 77... Ra1
{[%clk 0:00:14.1]} 78. Be6 {[%clk 0:00:04.8]} 78... Ra6 {[%clk 0:00:13.6]} 79.
Bc8 {[%clk 0:00:04.9]} 79... Ra1 {[%clk 0:00:13.6]} 80. Bd7 {[%clk 0:00:05.5]}
80... Rb1+ {[%clk 0:00:13]} 81. Ka5 {[%clk 0:00:05.3]} 81... Rb7 {[%clk
0:00:13.5]} 82. Bc6 {[%clk 0:00:05.3]} 82... Rc7 {[%clk 0:00:12.9]} 83. Kb6
{[%clk 0:00:05.9]} 83... Rh7 {[%clk 0:00:12]} 84. Rc8 {[%clk 0:00:06.4]} 84...
Rxa7 {[%clk 0:00:12.2]} 85. Kxa7 {[%clk 0:00:06.9]} 85... Kf4 {[%clk 0:00:13.1]}
86. Rh8 {[%clk 0:00:07.4]} 86... Kg3 {[%clk 0:00:14]} 87. Kb6 {[%clk 0:00:08.2]}
87... g5 {[%clk 0:00:14.9]} 88. Kc5 {[%clk 0:00:09.1]} 88... g4 {[%clk
0:00:15.8]} 89. Kd4 {[%clk 0:00:10]} 89... Kf2 {[%clk 0:00:16.2]} 90. Rxh4
{[%clk 0:00:09.5]} 90... g3 {[%clk 0:00:16.9]} 91. Rf4+ {[%clk 0:00:10]} 91...
Kg1 {[%clk 0:00:17]} 92. Rg4 {[%clk 0:00:10.4]} 92... Kh2 {[%clk 0:00:17.9]} 93.
Ke3 {[%clk 0:00:10.8]} 1-0

[Event "*** SCC Grand Prix: Titled Tuesday Blitz"]
[Site "Chess.com"]
[Date "2020.07.07"]
[Round "10"]
[White "deep306"]
[Black "Semetey"]
[Result "1-0"]
[WhiteElo "2646"]
[BlackElo "2473"]
[TimeControl "180+1"]
[EndTime "12:00:21 PDT"]
[Termination "deep306 won by resignation"]

1. e4 {[%clk 0:02:59.6]} 1... c5 {[%clk 0:02:58.6]} 2. Nf3 {[%clk 0:02:58.8]}
2... e6 {[%clk 0:02:58.3]} 3. Nc3 {[%clk 0:02:57.8]} 3... a6 {[%clk 0:02:57.7]}
4. d4 {[%clk 0:02:57.6]} 4... cxd4 {[%clk 0:02:58.6]} 5. Nxd4 {[%clk 0:02:58]}
5... Qc7 {[%clk 0:02:59.3]} 6. Qd3 {[%clk 0:02:58.6]} 6... Nf6 {[%clk
0:02:56.7]} 7. Qg3 {[%clk 0:02:58.4]} 7... Qxg3 {[%clk 0:02:48.6]} 8. hxg3
{[%clk 0:02:58.2]} 8... Bb4 {[%clk 0:02:48.5]} 9. f3 {[%clk 0:02:56.2]} 9... d5
{[%clk 0:02:47.1]} 10. e5 {[%clk 0:02:51.3]} 10... Nfd7 {[%clk 0:02:46.2]} 11.
f4 {[%clk 0:02:51.6]} 11... Nc6 {[%clk 0:02:45.7]} 12. Be3 {[%clk 0:02:50]}
12... Bxc3+ {[%clk 0:02:27.3]} 13. bxc3 {[%clk 0:02:49.5]} 13... Na5 {[%clk
0:02:20.2]} 14. Nb3 {[%clk 0:02:38.7]} 14... Nc4 {[%clk 0:02:17.9]} 15. Bxc4
{[%clk 0:02:38.3]} 15... dxc4 {[%clk 0:02:18.8]} 16. Na5 {[%clk 0:02:38.8]}
16... b5 {[%clk 0:02:18]} 17. O-O-O {[%clk 0:02:38.2]} 17... Rb8 {[%clk
0:02:10.4]} 18. Rd6 {[%clk 0:02:22.5]} 18... Bb7 {[%clk 0:01:40]} 19. Nxb7
{[%clk 0:02:19]} 19... Rxb7 {[%clk 0:01:40.9]} 20. Rhd1 {[%clk 0:02:01.5]} 20...
Ke7 {[%clk 0:01:38.2]} 21. Rxa6 {[%clk 0:01:56.9]} 21... Rc8 {[%clk 0:01:38.5]}
22. Kb2 {[%clk 0:01:46.9]} 22... h5 {[%clk 0:01:33.7]} 23. Ka3 {[%clk
0:01:42.2]} 23... Nb8 {[%clk 0:01:27.8]} 24. Ra7 {[%clk 0:01:27.2]} 24... Rxa7+
{[%clk 0:01:25.9]} 25. Bxa7 {[%clk 0:01:27.5]} 25... Nc6 {[%clk 0:01:24.8]} 26.
Bc5+ {[%clk 0:01:27.2]} 26... Ke8 {[%clk 0:01:24.7]} 27. Bd6 {[%clk 0:01:26.6]}
27... g6 {[%clk 0:01:22.7]} 28. g4 {[%clk 0:01:21.6]} 28... hxg4 {[%clk
0:01:20.6]} 29. Rh1 {[%clk 0:01:21.6]} 29... Kd7 {[%clk 0:01:21]} 30. Rh7 {[%clk
0:01:20.8]} 30... Nd8 {[%clk 0:01:21]} 31. Kb4 {[%clk 0:01:19.6]} 31... Kc6
{[%clk 0:01:21.3]} 32. a4 {[%clk 0:01:04.1]} 32... bxa4 {[%clk 0:01:20.9]} 33.
Kxa4 {[%clk 0:01:04]} 33... Nb7 {[%clk 0:01:01.9]} 34. Rxf7 {[%clk 0:00:58.1]}
34... Nxd6 {[%clk 0:00:53.8]} 35. exd6 {[%clk 0:00:58.1]} 35... Kxd6 {[%clk
0:00:54.7]} 36. Rf6 {[%clk 0:00:58.5]} 36... Kc5 {[%clk 0:00:45.9]} 37. Ka3
{[%clk 0:00:58.5]} 37... Ra8+ {[%clk 0:00:43.5]} 38. Kb2 {[%clk 0:00:58.5]}
38... Kd5 {[%clk 0:00:36.7]} 39. Rxg6 {[%clk 0:00:57.4]} 39... Ke4 {[%clk
0:00:34.2]} 40. Rxg4 {[%clk 0:00:57.2]} 40... Kf5 {[%clk 0:00:30.4]} 41. Rg5+
{[%clk 0:00:51.7]} 41... Kxf4 {[%clk 0:00:30]} 42. Rc5 {[%clk 0:00:51.8]} 42...
Ra4 {[%clk 0:00:29.9]} 43. Kc1 {[%clk 0:00:51.4]} 43... e5 {[%clk 0:00:29.5]}
44. Kd2 {[%clk 0:00:51.5]} 44... e4 {[%clk 0:00:29.5]} 45. Rc8 {[%clk
0:00:49.3]} 45... Ra5 {[%clk 0:00:22.5]} 46. Rf8+ {[%clk 0:00:46.4]} 46... Kg3
{[%clk 0:00:22]} 47. Ke3 {[%clk 0:00:45.7]} 47... Ra3 {[%clk 0:00:17]} 48. Rg8+
{[%clk 0:00:44.5]} 48... Kh2 {[%clk 0:00:16.2]} 49. Kd4 {[%clk 0:00:44.5]} 49...
e3 {[%clk 0:00:16.4]} 50. Re8 {[%clk 0:00:44.6]} 50... Kxg2 {[%clk 0:00:14]} 51.
Rxe3 {[%clk 0:00:44.1]} 51... Kf2 {[%clk 0:00:14.9]} 52. Re8 {[%clk 0:00:42.7]}
52... Ra4 {[%clk 0:00:15]} 53. Rc8 {[%clk 0:00:42.9]} 53... Ke2 {[%clk
0:00:12.9]} 54. Rxc4 {[%clk 0:00:43.1]} 54... Ra2 {[%clk 0:00:13.8]} 55. Rc5
{[%clk 0:00:39.5]} 55... Rxc2 {[%clk 0:00:13.6]} 56. Re5+ {[%clk 0:00:39.4]}
56... Kf3 {[%clk 0:00:13.5]} 57. c4 {[%clk 0:00:38.1]} 57... Kf4 {[%clk
0:00:14.4]} 58. Re8 {[%clk 0:00:37.9]} 58... Kf5 {[%clk 0:00:14.2]} 59. Kd5
{[%clk 0:00:36.7]} 59... Rd2+ {[%clk 0:00:13.4]} 60. Kc6 {[%clk 0:00:36.8]}
60... Kf6 {[%clk 0:00:13]} 61. c5 {[%clk 0:00:36.6]} 61... Kf7 {[%clk
0:00:13.9]} 62. Re3 {[%clk 0:00:36.4]} 62... Rc2 {[%clk 0:00:12.1]} 63. Kd6
{[%clk 0:00:36.3]} 63... Rd2+ {[%clk 0:00:11.1]} 64. Kc7 {[%clk 0:00:36.5]}
64... Rc2 {[%clk 0:00:12]} 65. c6 {[%clk 0:00:36.6]} 65... Rd2 {[%clk
0:00:12.4]} 66. Kc8 {[%clk 0:00:36.5]} 66... Rc2 {[%clk 0:00:12.7]} 67. c7
{[%clk 0:00:36.6]} 67... Rc1 {[%clk 0:00:12.6]} 68. Re4 {[%clk 0:00:32.7]} 68...
Kf6 {[%clk 0:00:12]} 69. Kd7 {[%clk 0:00:28.4]} 69... Rd1+ {[%clk 0:00:11.8]}
70. Kc6 {[%clk 0:00:28.5]} 70... Rc1+ {[%clk 0:00:12.2]} 71. Kd6 {[%clk
0:00:28.7]} 71... Kf7 {[%clk 0:00:09.2]} 72. Re5 {[%clk 0:00:20.7]} 72... Rd1+
{[%clk 0:00:06.1]} 73. Rd5 {[%clk 0:00:20.1]} 73... Rc1 {[%clk 0:00:07]} 74. Rc5
{[%clk 0:00:20.2]} 74... Rd1+ {[%clk 0:00:06.9]} 75. Kc6 {[%clk 0:00:20.3]}
75... Re1 {[%clk 0:00:07.1]} 76. c8=Q {[%clk 0:00:19.2]} 76... Re6+ {[%clk
0:00:07.4]} 77. Kb5 {[%clk 0:00:19.3]} 1-0

[Event "*** SCC Grand Prix: Titled Tuesday Blitz"]
[Site "Chess.com"]
[Date "2020.07.07"]
[Round "10"]
[White "angryhorse9"]
[Black "Fortitudine"]
[Result "0-1"]
[WhiteElo "2382"]
[BlackElo "2276"]
[TimeControl "180+1"]
[EndTime "12:00:21 PDT"]
[Termination "Fortitudine won by resignation"]

1. e4 {[%clk 0:03:00.9]} 1... c5 {[%clk 0:02:58.8]} 2. Nf3 {[%clk 0:03:01.4]}
2... d6 {[%clk 0:02:57.9]} 3. Bb5+ {[%clk 0:03:01.6]} 3... Nd7 {[%clk 0:02:58]}
4. d4 {[%clk 0:03:00.8]} 4... cxd4 {[%clk 0:02:57.3]} 5. Qxd4 {[%clk 0:03:01.7]}
5... Nf6 {[%clk 0:02:56.4]} 6. c4 {[%clk 0:03:00.6]} 6... g6 {[%clk 0:02:42.7]}
7. Nc3 {[%clk 0:02:55.3]} 7... Bg7 {[%clk 0:02:42.3]} 8. Bxd7+ {[%clk
0:02:54.3]} 8... Bxd7 {[%clk 0:02:42.8]} 9. O-O {[%clk 0:02:51.9]} 9... O-O
{[%clk 0:02:41.3]} 10. Qd3 {[%clk 0:02:47.8]} 10... Rc8 {[%clk 0:02:33.6]} 11.
Be3 {[%clk 0:02:42]} 11... a6 {[%clk 0:02:29.8]} 12. a4 {[%clk 0:02:36.1]} 12...
Qa5 {[%clk 0:02:03.7]} 13. b3 {[%clk 0:02:20.5]} 13... Bc6 {[%clk 0:01:34.6]}
14. Nd4 {[%clk 0:02:12.3]} 14... Ng4 {[%clk 0:01:20.2]} 15. Nxc6 {[%clk
0:02:10.7]} 15... bxc6 {[%clk 0:01:17.8]} 16. Bd4 {[%clk 0:02:10.9]} 16... Bxd4
{[%clk 0:00:54.5]} 17. Qxd4 {[%clk 0:02:11.3]} 17... Qe5 {[%clk 0:00:54.9]} 18.
Qxe5 {[%clk 0:02:07.5]} 18... Nxe5 {[%clk 0:00:55.8]} 19. Rab1 {[%clk
0:02:00.2]} 19... Rb8 {[%clk 0:00:54.2]} 20. Ne2 {[%clk 0:01:46.7]} 20... Rfc8
{[%clk 0:00:27.8]} 21. Rfd1 {[%clk 0:01:31.2]} 21... Rc7 {[%clk 0:00:17.5]} 22.
f4 {[%clk 0:01:22.7]} 22... Nd7 {[%clk 0:00:17.3]} 23. Nc1 {[%clk 0:01:17.9]}
23... Nc5 {[%clk 0:00:16.9]} 24. e5 {[%clk 0:01:18.4]} 24... dxe5 {[%clk
0:00:16.1]} 25. fxe5 {[%clk 0:01:19.3]} 25... Rd7 {[%clk 0:00:14.5]} 26. Rxd7
{[%clk 0:01:16.5]} 26... Nxd7 {[%clk 0:00:15.4]} 27. e6 {[%clk 0:01:17.1]} 27...
fxe6 {[%clk 0:00:16.3]} 28. b4 {[%clk 0:01:17.5]} 28... Nb6 {[%clk 0:00:16.3]}
29. c5 {[%clk 0:01:09.9]} 29... Nxa4 {[%clk 0:00:16.1]} 30. Nd3 {[%clk
0:01:10.6]} 30... Nc3 {[%clk 0:00:15.8]} 31. Ra1 {[%clk 0:01:10.8]} 31... Nd5
{[%clk 0:00:15.3]} 32. Ra4 {[%clk 0:01:08.7]} 32... Rb5 {[%clk 0:00:14.3]} 33.
Kf2 {[%clk 0:01:06.7]} 33... Kg7 {[%clk 0:00:13]} 34. h3 {[%clk 0:00:41.7]}
34... Kf6 {[%clk 0:00:12.3]} 35. g3 {[%clk 0:00:40.9]} 35... g5 {[%clk
0:00:11.8]} 36. Kf3 {[%clk 0:00:40.4]} 36... h6 {[%clk 0:00:11.3]} 37. Kg4
{[%clk 0:00:37.9]} 37... Kg7 {[%clk 0:00:07.8]} 38. Kf3 {[%clk 0:00:36.8]} 38...
Kf6 {[%clk 0:00:07.7]} 39. h4 {[%clk 0:00:36.1]} 39... gxh4 {[%clk 0:00:07.6]}
40. gxh4 {[%clk 0:00:36.3]} 40... Kf5 {[%clk 0:00:08.1]} 41. Rxa6 {[%clk
0:00:23.1]} 41... Nxb4 {[%clk 0:00:07.5]} 42. Nxb4 {[%clk 0:00:24]} 42... Rxb4
{[%clk 0:00:08.4]} 43. Rxc6 {[%clk 0:00:24.7]} 43... Rxh4 {[%clk 0:00:08.3]} 44.
Rc8 {[%clk 0:00:24.2]} 44... Rc4 {[%clk 0:00:08.2]} 45. c6 {[%clk 0:00:24.2]}
45... Rc3+ {[%clk 0:00:06.1]} 46. Ke2 {[%clk 0:00:22.7]} 46... Ke4 {[%clk
0:00:06.5]} 47. c7 {[%clk 0:00:22.2]} 47... e5 {[%clk 0:00:06.1]} 48. Kd2 {[%clk
0:00:21.8]} 48... Rc6 {[%clk 0:00:05.5]} 49. Rh8 {[%clk 0:00:21.8]} 49... Rxc7
{[%clk 0:00:05.3]} 50. Rxh6 {[%clk 0:00:21.1]} 50... Kd4 {[%clk 0:00:05.8]} 51.
Rh4+ {[%clk 0:00:16]} 51... e4 {[%clk 0:00:06.1]} 52. Rh8 {[%clk 0:00:15]} 52...
Ra7 {[%clk 0:00:03.6]} 53. Rb8 {[%clk 0:00:10]} 53... Ra2+ {[%clk 0:00:02.8]}
54. Ke1 {[%clk 0:00:09.8]} 54... Ke3 {[%clk 0:00:03.1]} 55. Rb3+ {[%clk
0:00:09.6]} 55... Kf4 {[%clk 0:00:03.7]} 56. Rh3 {[%clk 0:00:10]} 56... e5
{[%clk 0:00:04]} 57. Rh4+ {[%clk 0:00:09.2]} 57... Ke3 {[%clk 0:00:04.6]} 58.
Rh3+ {[%clk 0:00:09.6]} 58... Kd4 {[%clk 0:00:05.1]} 59. Rb3 {[%clk 0:00:10.4]}
59... e3 {[%clk 0:00:05.1]} 60. Rb4+ {[%clk 0:00:10.5]} 60... Kc3 {[%clk
0:00:05.6]} 61. Re4 {[%clk 0:00:10]} 61... Kd3 {[%clk 0:00:06.1]} 0-1

[Event "*** SCC Grand Prix: Titled Tuesday Blitz"]
[Site "Chess.com"]
[Date "2020.07.07"]
[Round "10"]
[White "Fandorine"]
[Black "bgfbfbgfbgfgf"]
[Result "1/2-1/2"]
[WhiteElo "2881"]
[BlackElo "2671"]
[TimeControl "180+1"]
[EndTime "12:00:32 PDT"]
[Termination "Game drawn by agreement"]

1. e4 {[%clk 0:03:00.9]} 1... e5 {[%clk 0:02:56.7]} 2. Nf3 {[%clk 0:03:00.7]}
2... Nc6 {[%clk 0:02:57]} 3. Bc4 {[%clk 0:03:01.1]} 3... Nf6 {[%clk 0:02:55.1]}
4. d3 {[%clk 0:03:01.3]} 4... h6 {[%clk 0:02:52.9]} 5. c3 {[%clk 0:02:58.2]}
5... d6 {[%clk 0:02:51.7]} 6. Nbd2 {[%clk 0:02:57.8]} 6... g6 {[%clk 0:02:50.6]}
7. O-O {[%clk 0:02:55.1]} 7... Bg7 {[%clk 0:02:50.6]} 8. a4 {[%clk 0:02:55.7]}
8... a5 {[%clk 0:02:41.9]} 9. Re1 {[%clk 0:02:55.5]} 9... O-O {[%clk 0:02:41.9]}
10. Nf1 {[%clk 0:02:56]} 10... d5 {[%clk 0:02:24.7]} 11. exd5 {[%clk 0:02:55.4]}
11... Nxd5 {[%clk 0:02:25.6]} 12. Ng3 {[%clk 0:02:55.3]} 12... Be6 {[%clk
0:01:54.1]} 13. Bd2 {[%clk 0:02:41.9]} 13... b6 {[%clk 0:01:48.3]} 14. Bb5
{[%clk 0:02:34.1]} 14... Nde7 {[%clk 0:01:47.6]} 15. Qc2 {[%clk 0:02:19.7]}
15... Kh7 {[%clk 0:01:39.3]} 16. h3 {[%clk 0:02:13.2]} 16... f5 {[%clk
0:01:30.4]} 17. Rad1 {[%clk 0:02:08]} 17... Qd6 {[%clk 0:01:29.3]} 18. Bc1
{[%clk 0:01:44.7]} 18... Rad8 {[%clk 0:01:23.8]} 19. h4 {[%clk 0:01:34.4]} 19...
Bd5 {[%clk 0:01:11]} 20. Qe2 {[%clk 0:01:26]} 20... Qf6 {[%clk 0:00:51.2]} 21.
Nf1 {[%clk 0:00:57.9]} 21... Bb3 {[%clk 0:00:49.3]} 22. h5 {[%clk 0:00:51.2]}
22... g5 {[%clk 0:00:44.9]} 23. N3d2 {[%clk 0:00:50.7]} 23... Bxd1 {[%clk
0:00:43.4]} 24. Rxd1 {[%clk 0:00:49.9]} 24... Nd5 {[%clk 0:00:39]} 25. g3 {[%clk
0:00:49.9]} 25... Nce7 {[%clk 0:00:34.6]} 26. Bc4 {[%clk 0:00:46.7]} 26... Qc6
{[%clk 0:00:27.8]} 27. Nf3 {[%clk 0:00:38.2]} 27... Qd6 {[%clk 0:00:23.6]} 28.
Re1 {[%clk 0:00:37.5]} 28... Nc6 {[%clk 0:00:22.2]} 29. N3d2 {[%clk 0:00:33.6]}
29... Rde8 {[%clk 0:00:20.9]} 30. Bb5 {[%clk 0:00:26.6]} 30... Re7 {[%clk
0:00:20.4]} 31. Nc4 {[%clk 0:00:24.9]} 31... Qf6 {[%clk 0:00:18.9]} 32. Nfe3
{[%clk 0:00:24.8]} 32... Nxe3 {[%clk 0:00:17.8]} 33. Nxe3 {[%clk 0:00:25.7]}
33... Qd6 {[%clk 0:00:14]} 34. Nxf5 {[%clk 0:00:20.4]} 34... Rxf5 {[%clk
0:00:09.6]} 35. Qe4 {[%clk 0:00:20.9]} 35... Rf7 {[%clk 0:00:09.6]} 36. g4
{[%clk 0:00:21.3]} 36... Ne7 {[%clk 0:00:08.6]} 37. gxf5 {[%clk 0:00:14]} 37...
Kh8 {[%clk 0:00:05.8]} 38. Bc4 {[%clk 0:00:10.9]} 38... Rxf5 {[%clk 0:00:04.6]}
39. Be3 {[%clk 0:00:11.3]} 39... Rf8 {[%clk 0:00:04.6]} 40. d4 {[%clk
0:00:08.7]} 40... Nf5 {[%clk 0:00:04.9]} 41. Bd3 {[%clk 0:00:08.9]} 41... exd4
{[%clk 0:00:03.7]} 42. cxd4 {[%clk 0:00:09.3]} 42... Bxd4 {[%clk 0:00:04.1]} 43.
Bxd4+ {[%clk 0:00:08.2]} 43... Qxd4 {[%clk 0:00:04.5]} 44. Qxd4+ {[%clk
0:00:07.7]} 44... Nxd4 {[%clk 0:00:04.7]} 45. Re7 {[%clk 0:00:08.3]} 45... c5
{[%clk 0:00:04.5]} 46. Rh7+ {[%clk 0:00:08.1]} 46... Kg8 {[%clk 0:00:05]} 47.
Rxh6 {[%clk 0:00:09]} 47... Rf3 {[%clk 0:00:05.7]} 48. Rg6+ {[%clk 0:00:06.7]}
48... Kf8 {[%clk 0:00:05.1]} 49. Bc4 {[%clk 0:00:05.4]} 49... Rf4 {[%clk
0:00:05.5]} 50. b3 {[%clk 0:00:04.3]} 50... Rh4 {[%clk 0:00:04.8]} 51. h6 {[%clk
0:00:04.1]} 51... Nf3+ {[%clk 0:00:04.5]} 52. Kg2 {[%clk 0:00:04.2]} 52... Ne5
{[%clk 0:00:05.2]} 53. Rg8+ {[%clk 0:00:04.1]} 53... Ke7 {[%clk 0:00:05.2]} 54.
Rxg5 {[%clk 0:00:03.3]} 54... Nxc4 {[%clk 0:00:05.2]} 55. bxc4 {[%clk
0:00:04.2]} 55... Rxh6 {[%clk 0:00:05.6]} 56. Kf3 {[%clk 0:00:04.1]} 56... Rh4
{[%clk 0:00:05.3]} 57. Rg4 {[%clk 0:00:04.4]} 57... Rh1 {[%clk 0:00:05.7]} 58.
Rg6 {[%clk 0:00:04.6]} 58... Rb1 {[%clk 0:00:05.8]} 59. Ke4 {[%clk 0:00:04.3]}
59... Rd1 {[%clk 0:00:03.9]} 60. Rxb6 {[%clk 0:00:02.9]} 60... Rd4+ {[%clk
0:00:04.4]} 61. Ke5 {[%clk 0:00:03.8]} 61... Rxc4 {[%clk 0:00:04.7]} 62. f4
{[%clk 0:00:04.7]} 62... Rxa4 {[%clk 0:00:04.5]} 63. Rb7+ {[%clk 0:00:04.5]}
63... Kf8 {[%clk 0:00:04.8]} 64. f5 {[%clk 0:00:05.4]} 64... Rh4 {[%clk
0:00:04.4]} 65. Ke6 {[%clk 0:00:05.3]} 65... Re4+ {[%clk 0:00:03.6]} 66. Kf6
{[%clk 0:00:05.9]} 66... a4 {[%clk 0:00:03.4]} 67. Ra7 {[%clk 0:00:04.5]} 67...
Ke8 {[%clk 0:00:01.9]} 68. Kg6 {[%clk 0:00:03.6]} 68... Rg4+ {[%clk 0:00:02.4]}
69. Kf6 {[%clk 0:00:04]} 69... Re4 {[%clk 0:00:03.1]} 70. Ra5 {[%clk 0:00:03.8]}
70... Rc4 {[%clk 0:00:02.4]} 71. Ke6 {[%clk 0:00:03.8]} 71... Re4+ {[%clk
0:00:02.9]} 72. Kd5 {[%clk 0:00:04.1]} 72... Rf4 {[%clk 0:00:03.5]} 73. Ke5
{[%clk 0:00:04.5]} 73... Rc4 {[%clk 0:00:04.1]} 74. f6 {[%clk 0:00:05]} 74...
Kf7 {[%clk 0:00:04.1]} 75. Ra7+ {[%clk 0:00:04.7]} 75... Kf8 {[%clk 0:00:04.8]}
76. Kf5 {[%clk 0:00:03.9]} 76... Rc1 {[%clk 0:00:04.8]} 77. Ra8+ {[%clk
0:00:03]} 77... Kf7 {[%clk 0:00:04.3]} 78. Ra7+ {[%clk 0:00:03.9]} 78... Kf8
{[%clk 0:00:04.8]} 79. Ke6 {[%clk 0:00:04.3]} 79... Re1+ {[%clk 0:00:04.6]} 80.
Kd5 {[%clk 0:00:04.5]} 80... Rf1 {[%clk 0:00:05.1]} 81. Kxc5 {[%clk 0:00:04.8]}
81... Rxf6 {[%clk 0:00:05.2]} 82. Rxa4 {[%clk 0:00:05.7]} 82... Rf5+ {[%clk
0:00:05.9]} 83. Kd6 {[%clk 0:00:06.2]} 83... Rf6+ {[%clk 0:00:06.2]} 84. Ke5
{[%clk 0:00:06.8]} 84... Rf7 {[%clk 0:00:06.8]} 85. Ra8+ {[%clk 0:00:07.6]}
85... Kg7 {[%clk 0:00:06.2]} 86. Ra6 {[%clk 0:00:08.5]} 86... Re7+ {[%clk
0:00:06.1]} 87. Kf5 {[%clk 0:00:09]} 87... Rf7+ {[%clk 0:00:06.7]} 88. Kg5
{[%clk 0:00:09.6]} 88... Rf1 {[%clk 0:00:07.2]} 89. Rg6+ {[%clk 0:00:10]} 89...
Kf7 {[%clk 0:00:07.3]} 90. Ra6 {[%clk 0:00:10.9]} 90... Ke7 {[%clk 0:00:07.4]}
91. Ra4 {[%clk 0:00:09.7]} 91... Kd7 {[%clk 0:00:07.6]} 92. Re4 {[%clk
0:00:08.7]} 1/2-1/2